Cogmind - Beta 13 @@@ ROGUE MODE // 2024.04.26 @ 22:13:53 Player: Glyb Result: Destroyed by S-43 Plague with Heavy Machine Gun Performance ------------- Evolutions (6) 3000 Regions Visited (11) 2200 Robots Destroyed (30) 150 Value Destroyed (698) 698 Prototype IDs (14) 280 Alien Tech Used (0) 0 Bonus (1070) 1070 TOTAL SCORE: 7398 Bonus ------- Follower Combat Kills 70 Met Warlord at Base 500 MAIN.C Attacked Warlord 500 Cogmind --------- Core Integrity 0/1150 Matter 280/300 Energy 197/315 System Corruption 1% Temperature Cool (0) Movement Flying (45) Location -3/Proximity Caves Parts ------- > --- POWER (2) -------- Neutrino Core > --- PROPULSION (8) --- Impulse Thruster Array > --- UTILITY (6) ------ Visual Processing Unit Graphene Brace Advanced Component Analysis Suite > --- WEAPON (3) ------- (None) > --- INVENTORY (5) ---- Matter Neutralizer Phasing Sabre Peak State ------------ > --- POWER ------------ Backup Power III Light Quantum Reactor > --- PROPULSION ------- Impulse Thruster Array Impulse Thruster Array > --- UTILITY ---------- Visual Processing Unit Enhanced Optical Array Heavy Armor Plating Hacking Suite > --- WEAPON ----------- Backup Laser III > --- INVENTORY -------- Neutrino Core Graphene Brace Vortex Shotgun Matter Neutralizer Phasing Sabre [Rating: 66] Favorites ----------- Power Micro Nuclear Core Engine Backup Power III Power Core Micro Nuclear Core Reactor Light Quantum Reactor Propulsion Flight Unit Treads Improved Treads Wheel Wheel Hover Unit Improved Hover Unit Flight Unit Flight Unit Utility Visual Processing Unit Device Advanced Heat Sink Storage Medium Storage Unit Processor Visual Processing Unit Hackware Hacking Suite Protection Heavy Armor Plating Weapon Katana Energy Gun Backup Laser III Energy Cannon Plasma Cannon Ballistic Gun Light Assault Rifle Slashing Weapon Katana Build | -11 -10 -9 -8 -7 -6 -5 -4 -4 -4 -4 -3 ------- Run | Yrd Mat Mat Mat Fac Fac Fac Fac Upp Upp War Pro Slots Evolved 12 | . . 2 2 2 2 2 2 . . . . Power 1 | . . . . . . . 1 . . . . Propulsion 6 | . . 2 1 1 . 1 1 . . . . Utility 4 | . . . 1 1 1 1 . . . . . Weapon 1 | . . . . . 1 . . . . . . Parts Attached 70 | 7 12 3 12 6 2 2 5 3 4 8 6 Power 10 | 1 1 1 2 1 . . 1 . 1 1 1 Engine 4 | 1 1 1 1 . . . . . . . . Core 5 | . . . 1 1 . . 1 . 1 . 1 Reactor 1 | . . . . . . . . . . 1 . Propulsion 28 | 3 4 2 6 3 . 1 3 1 1 4 . Treads 5 | 1 2 . 1 . . . . . 1 . . Leg . | . . . . . . . . . . . . Wheel 2 | 2 . . . . . . . . . . . Hover 4 | . 2 2 . . . . . . . . . Flight 17 | . . . 5 3 . 1 3 1 . 4 . Utility 16 | 1 4 . 1 1 2 1 . 1 1 2 2 Device 5 | . . . . 1 . . . 1 1 . 2 Storage 5 | 1 2 . . . 1 . . . . 1 . Processor 4 | . 2 . . . 1 1 . . . . . Hackware 1 | . . . 1 . . . . . . . . Protection 1 | . . . . . . . . . . 1 . Artifact . | . . . . . . . . . . . . Weapon 16 | 2 3 . 3 1 . . 1 1 1 1 3 Energy Gun 5 | . 2 . 1 . . . . . . 1 1 Energy Cannon 3 | . . . 1 . . . 1 . . . 1 Ballistic Gun 3 | 2 1 . . . . . . . . . . Ballistic Cannon . | . . . . . . . . . . . . Launcher . | . . . . . . . . . . . . Special Weapon . | . . . . . . . . . . . . Impact Weapon . | . . . . . . . . . . . . Slashing Weapon 5 | . . . 1 1 . . . 1 1 . 1 Piercing Weapon . | . . . . . . . . . . . . Special Melee Weapon . | . . . . . . . . . . . . Unidentified Prototypes 4 | . . . 2 . . . 1 . . 1 . Corrupted Parts 1 | . . . . . . . . . . 1 . System Corruption 1 | . . . . . . . . . . 1 . Parts Lost 35 | . 4 . 5 . . . 1 3 9 9 4 Power 6 | . 1 . 1 . . . . . 1 2 1 Propulsion 21 | . 2 . 4 . . . . 3 6 5 1 Utility 5 | . . . . . . . . . 2 2 1 Weapon 3 | . 1 . . . . . 1 . . . 1 Highest Loss Streak 13 | . 4 . 3 . . . 1 2 6 9 13 To Critical Strikes 1 | . . . . . . . . . 1 . . Average Slot Usage (%) 73 | . 90 96 79 97 86 93 91 83 64 53 24 Engine 5 | . 12 11 3 . . . . . . 9 . Core 3 | . . . 2 7 6 5 10 10 8 . 1 Treads 2 | . 12 . 6 . . . . . 3 . . Wheel 1 | . 10 . . . . . . . . . . Hover 4 | . . 40 19 . . . . . . 4 . Flight 15 | . . . 16 45 40 41 40 35 14 5 6 Device 3 | . . . . 7 6 5 5 5 4 4 3 Storage 5 | . 14 11 9 7 6 5 5 5 4 . . Processor 11 | . 11 11 9 7 6 16 15 15 14 10 6 Hackware 3 | . . . 2 7 6 5 5 5 5 4 . Energy Gun 6 | . 18 11 3 . . . . . . 8 1 Energy Cannon 1 | . . . 1 7 6 5 4 1 . . 2 Ballistic Gun 1 | . 7 11 3 . . . . . . . . Slashing Weapon 4 | . . . 5 5 6 5 5 4 5 4 2 Naked Turns . | . . . . . . . . . . . . Heaviest Build 35 | 10 24 14 19 21 26 26 35 35 25 32 16 Greatest Support 46 | 20 46 28 28 27 27 31 38 38 30 40 20 Greatest Overweight (x) 6 | . 4 . 1 . . . . 1 6 3 . Average Overweight (x) . | . . . . . . . . . . 1 . Largest Inventory Capacity 10 | 8 10 8 8 8 10 10 10 10 10 8 5 Average Capacity 7 | 6 9 8 8 8 8 10 10 10 9 5 5 Most Carried 10 | 5 10 8 8 8 9 8 8 9 8 5 5 Average Carried 6 | 2 6 6 7 6 8 7 7 8 7 4 2 Final Capacity 10 | 8 8 8 8 8 10 10 10 10 5 5 5 Final Carried 9 | 4 8 7 8 8 9 8 8 8 5 5 2 Class Distribution -------------------- 55% | Mutant 28% | Scavenger-Sprinter 12% | Scavenger-Mutant 3% | Sprinter Dominant Class ---------------- Mutant | -10/Materials Mutant | -9/Materials Mutant | -8/Materials Scavenger-Sprinter | -7/Factory Scavenger-Sprinter | -6/Factory Scavenger-Sprinter | -5/Factory Scavenger-Sprinter | -4/Factory Scavenger-Sprinter | -4/Upper Caves Scavenger-Mutant | -4/Upper Caves Mutant | -4/Warlord Mutant | -3/Proximity Caves Resources | -11 -10 -9 -8 -7 -6 -5 -4 -4 -4 -4 -3 ----------- Run | Yrd Mat Mat Mat Fac Fac Fac Fac Upp Upp War Pro Matter Collected 877 | 207 151 48 137 70 10 . . 30 114 80 30 Remotely . | . . . . . . . . . . . . Salvage Created 954 | . 238 48 208 112 99 . . . 100 . 149 Parts 61 | . 22 4 17 6 3 . . . 6 . 3 Haulers Intercepted 4 | . 1 1 . 1 1 . . . . . . Recyclers Shooed . | . . . . . . . . . . . . Parts Field Recycled . | . . . . . . . . . . . . Retrieved Matter . | . . . . . . . . . . . . Parts Self-Destructed 6 | . . . . . . . . . 3 . 3 Prevented 1 | . . . . . . . . 1 . . . Kills | -11 -10 -9 -8 -7 -6 -5 -4 -4 -4 -4 -3 ------- Run | Yrd Mat Mat Mat Fac Fac Fac Fac Upp Upp War Pro Combat Hostiles Destroyed 22 | . 7 . 8 1 . . . . 1 . 5 Melee 6 | . . . 5 . . . . . 1 . . Guns 14 | . 7 . 3 . . . . . . . 4 Cannons 1 | . . . . 1 . . . . . . . AOE 1 | . . . . . . . . . . . 1 Classes Destroyed 8 | . 5 . . 1 . . . . 1 . 1 Hauler 4 | . 1 1 . 1 1 . . . . . . Operator 2 | . 1 . . 1 . . . . . . . Drone 2 | . . . . . . . . . . . 2 Watcher 2 | . 2 . . . . . . . . . . Swarmer 12 | . 6 . 6 . . . . . . . . Grunt 6 | . 1 . 2 . . . . . . . 3 Programmer 1 | . . . . 1 . . . . . . . Mutant 1 | . . . . . . . . . 1 . . Best Kill Streak 6 | . 6 1 3 2 1 . . . 1 . 5 Combat Bots Only 6 | . 6 . 3 1 . . . . 1 . 5 Max Kills in Single Turn 2 | . 2 1 1 1 1 . . . 1 . 1 Gunslinging . | . . . . . . . . . . . . Exploded 1 | . . . . . . . . . . . 1 Melee 1 | . . . 1 . . . . . 1 . . Uniques/NPCs Destroyed . | . . . . . . . . . . . . Combat | -11 -10 -9 -8 -7 -6 -5 -4 -4 -4 -4 -3 -------- Run | Yrd Mat Mat Mat Fac Fac Fac Fac Upp Upp War Pro Hostile Shots Fired 439 | . 73 10 69 16 2 4 10 29 85 109 32 Missed 174 | . 20 5 22 8 2 1 6 15 24 55 16 Damage Taken 4379 | . 429 54 563 127 35 108 78 271 1138 1194 382 Core 1581 | . 151 . 118 47 5 88 22 27 524 443 156 Absorbed by Shields . | . . . . . . . . . . . . Regen/Repaired (Parts) 112 | . . . . 41 . . 22 . . 49 . Core Remaining (%) 85 | 100 39 100 78 93 99 91 . . . . . Volleys Fired 67 | . 27 8 5 5 3 5 . 2 . . 12 Largest 2 | . 2 2 2 1 1 1 . 1 . . 1 Hottest 112 | . 112 76 81 80 80 80 . 105 . . 60 Shots Fired 102 | . 49 16 10 5 3 5 . 2 . . 12 Gun 87 | . 49 16 10 . . . . . . . 12 Cannon 15 | . . . . 5 3 5 . 2 . . . Launcher . | . . . . . . . . . . . . Special . | . . . . . . . . . . . . Kinetic 17 | . 4 8 5 . . . . . . . . Thermal 73 | . 45 8 5 5 3 5 . 2 . . . Explosive . | . . . . . . . . . . . . Electromagnetic . | . . . . . . . . . . . . Entropic 12 | . . . . . . . . . . . 12 Robot Hit Streak 8 | . 8 5 4 5 5 . . . . . 8 Robot Miss Streak 4 | . 3 1 1 1 . . . 2 . . 4 Penetration Max . | . . . . . . . . . . . . Secondary Targets 1 | . . . 1 . . . . . . . . Max Gunslinging Chain 1 | . . . 1 . . . . . . . . Shots Hit Robots 89 | . 26 11 20 11 3 . 2 . 6 . 10 Core Hits 41 | . 11 2 8 3 2 . 1 . 3 . 11 Critical Kills . | . . . . . . . . . . . . Critical Parts Destroyed 1 | . . . . . . . . . . . 1 Critical Strikes 4 | . 2 . 1 . . . . . . . 1 Burn 2 | . 2 . . . . . . . . . . Sever 1 | . . . 1 . . . . . . . . Detonate 1 | . . . . . . . . . . . 1 Melee Attacks 39 | . . . 16 10 . 1 2 3 7 . . Impact . | . . . . . . . . . . . . Slashing 39 | . . . 16 10 . 1 2 3 7 . . Piercing . | . . . . . . . . . . . . Sneak Attacks 1 | . . . . 1 . . . . . . . Combat Hostiles . | . . . . . . . . . . . . Follow-up Attacks . | . . . . . . . . . . . . Damage Inflicted 2372 | . 410 111 524 403 75 . 66 . 193 . 590 Guns 1141 | . 404 111 103 . . . . . . . 523 Cannons 189 | . . . . 114 75 . . . . . . Explosions 67 | . . . . . . . . . . . 67 Melee 969 | . . . 421 289 . . 66 . 193 . . Ramming 6 | . 6 . . . . . . . . . . Kinetic 98 | . 8 67 23 . . . . . . . . Thermal 776 | . 396 44 80 114 75 . . . . . 67 Explosive . | . . . . . . . . . . . . Electromagnetic . | . . . . . . . . . . . . Impact . | . . . . . . . . . . . . Slashing 969 | . . . 421 289 . . 66 . 193 . . Piercing . | . . . . . . . . . . . . Entropic 523 | . . . . . . . . . . . 523 Highest Corruption 1 | . 1 . . . . . . . . 1 1 Average Corruption 1 | . 1 . . . . . . . . 1 1 Corruption Purged . | . . . . . . . . . . . . Corruption Blocked . | . . . . . . . . . . . . Overload Shots . | . . . . . . . . . . . . Overflow Damage 96 | . . . 29 8 . . . . . . 59 Projectiles . | . . . . . . . . . . . . Explosions 59 | . . . . . . . . . . . 59 Melee 37 | . . . 29 8 . . . . . . . Knockbacks . | . . . . . . . . . . . . Impact . | . . . . . . . . . . . . Kinetic . | . . . . . . . . . . . . Secondary . | . . . . . . . . . . . . Self-Inflicted Damage 79 | . . . . . . . . . . . 79 Shots 1 | . . . . . . . . . . . 1 Rammed 1 | . 1 . . . . . . . . . . Targets Rammed 1 | . 1 . . . . . . . . . . Kicked . | . . . . . . . . . . . . Crushed . | . . . . . . . . . . . . Highest Temperature 376 | . 376 95 123 163 102 337 358 141 . 69 27 Average Temperature 86 | . 129 44 32 56 27 161 127 21 . 26 15 Received Heat Transfer 1201 | . 24 30 216 45 12 18 58 36 395 292 75 Effects 2 | . . . . . . 1 1 . . . . Energy Bleed 1 | . . . . . . . 1 . . . . Matter Decay 1 | . . . . . . 1 . . . . . Siege Activations . | . . . . . . . . . . . . Robots Corrupted . | . . . . . . . . . . . . Combat Hostiles . | . . . . . . . . . . . . Parts Fried . | . . . . . . . . . . . . Impact Corruptions . | . . . . . . . . . . . . Robots Melted . | . . . . . . . . . . . . Combat Hostiles . | . . . . . . . . . . . . Parts Melted 4 | . 2 . 1 1 . . . . . . . Heat Transferred 1756 | . 1147 111 148 200 150 . . . . . . Parts Sabotaged . | . . . . . . . . . . . . Parts Stolen . | . . . . . . . . . . . . Parts Stripped . | . . . . . . . . . . . . Power Chain Reactions . | . . . . . . . . . . . . Alert | -11 -10 -9 -8 -7 -6 -5 -4 -4 -4 -4 -3 ------- Run | Yrd Mat Mat Mat Fac Fac Fac Fac Upp Upp War Pro Peak Influence 280 | . 147 53 280 278 187 175 195 . . . . Initial 135 | . . . 22 127 135 91 85 . . . . Average 120 | . 91 13 172 172 154 130 116 . . . . Maximum Alert Level 1 | . . . 1 1 . . . . . . . Low Security (%) 87 | 100 100 100 51 69 100 100 100 . . . . Level 1 12 | . . . 48 30 . . . . . . . Level 2 . | . . . . . . . . . . . . Level 3 . | . . . . . . . . . . . . Level 4 . | . . . . . . . . . . . . Level 5 . | . . . . . . . . . . . . High Security . | . . . . . . . . . . . . Max Security . | . . . . . . . . . . . . Squads Dispatched 12 | . 1 2 1 3 . 1 4 . . . . Investigation 3 | . . . . 1 . . 2 . . . . Extermination 1 | . . . . 1 . . . . . . . Reinforcement 8 | . 1 2 1 1 . 1 2 . . . . Assault . | . . . . . . . . . . . . Garrison . | . . . . . . . . . . . . Intercept . | . . . . . . . . . . . . Searches Triggered . | . . . . . . . . . . . . Construction Impeded . | . . . . . . . . . . . . Haulers Reinforced 1 | . . . . 1 . . . . . . . Active Scanning Responses . | . . . . . . . . . . . . Cargo Convoy Interrupts . | . . . . . . . . . . . . Stealth | -11 -10 -9 -8 -7 -6 -5 -4 -4 -4 -4 -3 --------- Run | Yrd Mat Mat Mat Fac Fac Fac Fac Upp Upp War Pro Distress Signals 9 | . 1 2 3 . 1 . . . . 1 1 Communications Jammed . | . . . . . . . . . . . . Distress Signals . | . . . . . . . . . . . . Times Spotted 119 | . 13 7 17 6 3 7 7 14 8 25 12 Peak Tracking Total 19 | . 8 8 9 3 2 4 4 7 7 19 3 Tactical Retreats 13 | . . 1 2 1 . 1 2 3 1 1 1 Traps | -11 -10 -9 -8 -7 -6 -5 -4 -4 -4 -4 -3 ------- Run | Yrd Mat Mat Mat Fac Fac Fac Fac Upp Upp War Pro Traps Triggered 1 | . 1 . . . . . . . . . . Indirectly . | . . . . . . . . . . . . Trap Hack Attempts . | . . . . . . . . . . . . Triggered . | . . . . . . . . . . . . Disarmed . | . . . . . . . . . . . . Reprogrammed . | . . . . . . . . . . . . Reused . | . . . . . . . . . . . . Traps Extracted . | . . . . . . . . . . . . Installed . | . . . . . . . . . . . . Triggered 18 | . . . . . . . . 1 . 17 . Machines | -11 -10 -9 -8 -7 -6 -5 -4 -4 -4 -4 -3 ---------- Run | Yrd Mat Mat Mat Fac Fac Fac Fac Upp Upp War Pro Machines Disabled 2 | . . . 1 . . . . . 1 . . Max in Single Turn 1 | . . . 1 . . . . . 1 . . Garrison Access 1 | . . . . . 1 . . . . . . Machines Repaired . | . . . . . . . . . . . . Machines Dismantled . | . . . . . . . . . . . . Machines Sabotaged . | . . . . . . . . . . . . Overloaded Fab Kills . | . . . . . . . . . . . . Hacking | -11 -10 -9 -8 -7 -6 -5 -4 -4 -4 -4 -3 --------- Run | Yrd Mat Mat Mat Fac Fac Fac Fac Upp Upp War Pro Machines Accessed 21 | . 1 1 2 5 1 3 4 . 1 3 . Terminals 13 | . . 1 2 4 . 3 3 . . . . Fabricators . | . . . . . . . . . . . . Repair Stations 2 | . . . . 1 . . 1 . . . . Recycling Units 1 | . 1 . . . . . . . . . . Scanalyzers . | . . . . . . . . . . . . Garrison Access 1 | . . . . . 1 . . . . . . Total Hacks 44 | . 1 3 5 9 2 6 10 . 1 7 . Successful 26 | . 1 . 2 5 1 2 7 . 1 7 . Failed 18 | . . 3 3 4 1 4 3 . . . . Catastrophic 5 | . . 1 . 1 . 1 2 . . . . Database Lockouts . | . . . . . . . . . . . . Manual 22 | . . 3 4 5 . 5 5 . . . . Terminals 27 | . . 3 5 5 . 6 8 . . . . Fabricators . | . . . . . . . . . . . . Repair Stations 6 | . . . . 4 . . 2 . . . . Recycling Units 1 | . 1 . . . . . . . . . . Scanalyzers . | . . . . . . . . . . . . Garrison Access 2 | . . . . . 2 . . . . . . Terminal Hacks 17 | . . . 2 . . 2 5 . 1 7 . Record 8 | . . . . . . 1 5 . . 2 . Prototype ID Bank 5 | . . . 1 . . . . . . 4 . Open Door 2 | . . . . . . . . . 1 1 . Level Access Points 2 | . . . 1 . . 1 . . . . . Fabricator Hacks . | . . . . . . . . . . . . Repair Station Hacks 6 | . . . . 4 . . 2 . . . . Scan Component 3 | . . . . 2 . . 1 . . . . Repair 3 | . . . . 2 . . 1 . . . . Recycling Unit Hacks 1 | . 1 . . . . . . . . . . Report Inventory 1 | . 1 . . . . . . . . . . Scanalyzer . | . . . . . . . . . . . . Garrison Access Hacks 1 | . . . . . 1 . . . . . . Seal Access 1 | . . . . . 1 . . . . . . Unauthorized Hacks 1 | . . . . 1 . . . . . . . Terminals 1 | . . . . 1 . . . . . . . Assimilate 1 | . . . . 1 . . . . . . . Fabricators . | . . . . . . . . . . . . Repair Stations . | . . . . . . . . . . . . Recycling Units . | . . . . . . . . . . . . Scanalyzers . | . . . . . . . . . . . . Garrison Access . | . . . . . . . . . . . . Data Cores Recovered 1 | . . . . 1 . . . . . . . Used . | . . . . . . . . . . . . Hacking Detections 11 | . . 1 1 3 . 3 3 . . . . Full Trace Events 4 | . . 1 . 1 . . 2 . . . . Feedback Events . | . . . . . . . . . . . . Feedback Blocked . | . . . . . . . . . . . . Robot Schematics Acquired . | . . . . . . . . . . . . Robots Built . | . . . . . . . . . . . . Authchips . | . . . . . . . . . . . . Time . | . . . . . . . . . . . . Total Robot Build Rating . | . . . . . . . . . . . . Part Schematics Acquired . | . . . . . . . . . . . . Parts Built . | . . . . . . . . . . . . Authchips . | . . . . . . . . . . . . Time . | . . . . . . . . . . . . Total Part Build Rating . | . . . . . . . . . . . . Parts Repaired 3 | . . . . 2 . . 1 . . . . Time 108 | . . . . 64 . . 44 . . . . Parts Recycled . | . . . . . . . . . . . . Recycled Matter . | . . . . . . . . . . . . Retrieved Matter . | . . . . . . . . . . . . Retrieved Components . | . . . . . . . . . . . . Parts Scanalyzed . | . . . . . . . . . . . . Part Schematics Acquired . | . . . . . . . . . . . . Parts Damaged . | . . . . . . . . . . . . Bothacking | -11 -10 -9 -8 -7 -6 -5 -4 -4 -4 -4 -3 ------------ Run | Yrd Mat Mat Mat Fac Fac Fac Fac Upp Upp War Pro Used RIF Installer . | . . . . . . . . . . . . Robots Hacked . | . . . . . . . . . . . . Non-combat . | . . . . . . . . . . . . Combat . | . . . . . . . . . . . . Robot Hacks Applied . | . . . . . . . . . . . . Relay Couplers Released . | . . . . . . . . . . . . Fabnet Peak Effective % . | . . . . . . . . . . . . Robots Rewired 3 | . . . . . . . . . 3 . . Allies Hacked . | . . . . . . . . . . . . Hacks Repelled . | . . . . . . . . . . . . Allies | -11 -10 -9 -8 -7 -6 -5 -4 -4 -4 -4 -3 -------- Run | Yrd Mat Mat Mat Fac Fac Fac Fac Upp Upp War Pro Total Allies 4 | . . . . 1 . . . . 3 . . Largest Group 3 | . . . . 1 1 . . . 3 . . Highest-Rated Group 138 | . . . . 10 10 . . . 138 . . Highest-Rated Ally 46 | . . . . 10 10 . . . 46 . . Total Orders . | . . . . . . . . . . . . Ally Attacks 16 | . . . . . . . . . 16 . . Total Damage 326 | . . . . . . . . . 326 . . Kills 2 | . . . . . . . . . 2 . . Allies Corrupted 1 | . . . . . 1 . . . . . . Allies Melted 2 | . . . . . . . . . . 2 . Intel | -11 -10 -9 -8 -7 -6 -5 -4 -4 -4 -4 -3 ------- Run | Yrd Mat Mat Mat Fac Fac Fac Fac Upp Upp War Pro Robot Analysis Total . | . . . . . . . . . . . . Derelict Logs Recovered 2 | . . . . . . . . 1 1 . . Drone Launches . | . . . . . . . . . . . . Drone Recoveries . | . . . . . . . . . . . . Exploration | -11 -10 -9 -8 -7 -6 -5 -4 -4 -4 -4 -3 ------------- Run | Yrd Mat Mat Mat Fac Fac Fac Fac Upp Upp War Pro Turns Passed 2725 | 46 400 88 182 256 78 99 158 109 412 810 87 Spaces Moved 3690 | 43 227 120 211 507 253 307 517 450 386 567 102 Core 19 | 10 7 . . . . . . . 1 1 . Treads 282 | 1 82 . . . . . . . 199 . . Legs . | . . . . . . . . . . . . Wheels 157 | 32 125 . . . . . . . . . . Hover 523 | . 13 120 66 . . . . . . 324 . Flight 2709 | . . . 145 507 253 307 517 450 186 242 102 Fastest Speed 17 | 50 56 48 28 25 25 22 17 17 22 25 37 Average Speed 56 | 74 113 49 43 25 25 22 17 20 96 139 44 Slowest Speed 350 | 160 250 56 130 25 25 22 19 102 350 295 45 Overloaded Moves . | . . . . . . . . . . . . Propulsion Burnouts . | . . . . . . . . . . . . Robots Hopped 16 | . . . 1 3 3 1 5 . . 3 . Cave-ins Triggered . | . . . . . . . . . . . . Exploration Rate (%) 31 | 4 45 21 30 18 10 17 16 67 67 77 11 Regions Visited 11 Branch Regions 4 Pre-discovered Areas 1 | . . . . . . . . . 1 . . Known Exits Taken 2 | . . . 1 . . 1 . . . . . Unknown Exits Taken 9 | 1 1 1 . 1 1 . 1 1 1 1 . Scrap Searched 6 | . . . . . . . . 3 2 . 1 Spaces Dug 4 | . . . . . . 1 . 3 . . . Terrain Destroyed 23 | . . . . . . 1 . 5 . . 17 Melee 4 | . . . . . . 1 . 3 . . . Projectile 11 | . . . . . . . . 2 . . 9 AOE 8 | . . . . . . . . . . . 8 Terrain Rammed . | . . . . . . . . . . . . Walls Destroyed . | . . . . . . . . . . . . Machines Disabled . | . . . . . . . . . . . . Actions | -11 -10 -9 -8 -7 -6 -5 -4 -4 -4 -4 -3 --------- Run | Yrd Mat Mat Mat Fac Fac Fac Fac Upp Upp War Pro Total 4133 | 54 319 133 265 612 259 330 576 460 415 579 131 Wait 213 | . 34 3 9 80 4 16 56 . 2 . 9 Move 3648 | 42 226 119 208 500 246 304 506 449 385 561 102 Hop 15 | . . . 1 3 3 1 5 . . 2 . Pick Up 33 | 4 13 . 6 4 1 1 2 . 1 1 . Fast Attach 33 | 6 2 . 8 2 1 . 2 . 4 7 1 Attach 25 | 1 4 2 3 2 . 2 2 3 . 1 5 Detach 11 | 1 1 . 1 . . . . 3 1 2 2 Swap 12 | . 6 1 1 2 1 . 1 . . . . Drop 26 | . 5 . 7 4 . . . . 5 5 . Fire 67 | . 27 8 5 5 3 5 . 2 . . 12 Melee 39 | . . . 16 10 . 1 2 3 7 . . Ram . | . . . . . . . . . . . . Kick . | . . . . . . . . . . . . Crush 1 | . 1 . . . . . . . . . . Escape Stasis . | . . . . . . . . . . . . Rewire 10 | . . . . . . . . . 10 . . Trap . | . . . . . . . . . . . . Miscellaneous . | . . . . . . . . . . . . Route ------- -11/Scrapyard -10/Materials -9/Materials -8/Materials (discovered 3 exits: *Fac x3) -7/Factory -6/Factory -5/Factory (discovered 4 exits: *Fac x4) -4/Factory -4/Upper Caves -4/Upper Caves -4/Warlord -3/Proximity Caves History --------- Turn | Location | Event 7 | -11/Scrapyard | Discovered new exit (range 15) 47 | -11/Scrapyard | Entered Materials 210 | -10/Materials | Core integrity fell below 50% 259 | -10/Materials | Lost 4 parts (1p2n1w) 308 | -10/Materials | Build established: Mutant 413 | -10/Materials | Discovered new exit (range 17) 447 | -10/Materials | Entered another Materials area 447 | -9/Materials | Evolved 2 slots: Propulsion x2 514 | -9/Materials | Discovered new exit (range 17) 535 | -9/Materials | Entered another Materials area 535 | -8/Materials | Evolved 2 slots: Propulsion x1, Utility x1 681 | -8/Materials | Lost 3 parts (3n) 702 | -8/Materials | Identified exit to Factory 717 | -8/Materials | Entered Factory 717 | -7/Factory | Evolved 2 slots: Propulsion x1, Utility x1 772 | -7/Factory | Repaired Flight Unit 812 | -7/Factory | Repaired Katana 953 | -7/Factory | Discovered new exit (range 17) 954 | -7/Factory | Build established: Scavenger-Sprinter 973 | -7/Factory | Entered another Factory area 973 | -6/Factory | Accompanied by 1 ally 973 | -6/Factory | Evolved 2 slots: Utility x1, Weapon x1 1045 | -6/Factory | Discovered new exit (range 22) 1051 | -6/Factory | Entered another Factory area 1051 | -5/Factory | Evolved 2 slots: Propulsion x1, Utility x1 1085 | -5/Factory | Discovered new exit (range 20) 1106 | -5/Factory | Identified exit to Factory 1150 | -5/Factory | Entered another Factory area 1150 | -4/Factory | Evolved 2 slots: Power x1, Propulsion x1 1269 | -4/Factory | Repaired Xenon Bombardment Thruster 1301 | -4/Factory | Discovered new exit (range 12) 1308 | -4/Factory | Entered Upper Caves 1315 | -4/Upper Caves | Attracted the attention of an 0b10 outpost 1409 | -4/Upper Caves | Learned Research stockpile data 1415 | -4/Upper Caves | Discovered new exit (range 8) 1417 | -4/Upper Caves | Entered another Upper Caves area 1437 | -4/Upper Caves | Attacked by a delusional Derelict stockpiling Unaware 1476 | -4/Upper Caves | Lost 3 parts (3n) 1680 | -4/Upper Caves | Learned location of Testing (-2) 1739 | -4/Upper Caves | Build established: Scavenger-Mutant 1755 | -4/Upper Caves | Attracted the attention of an 0b10 base 1796 | -4/Upper Caves | Lost 3 allies 1825 | -4/Upper Caves | Lost 6 parts (1p3n2u) 1828 | -4/Upper Caves | Discovered new exit (range 7) 1829 | -4/Upper Caves | Entered Warlord 1953 | -4/Warlord | Visited the Vortex Lab 1962 | -4/Warlord | Found Prototype Energy Gun 1962 | -4/Warlord | Identified Vortex Shotgun 1966 | -4/Warlord | Warlord's base attacked by MAIN.C 2173 | -4/Warlord | Build established: Mutant 2256 | -4/Warlord | Met Warlord 2316 | -4/Warlord | Warlord forces counterattacked 2595 | -4/Warlord | Spotted Striker 2610 | -4/Warlord | Spotted Striker 2611 | -4/Warlord | Spotted Executioner 2613 | -4/Warlord | Core integrity fell below 50% 2618 | -4/Warlord | Spotted Executioner 2629 | -4/Warlord | Core integrity fell below 20% 2634 | -4/Warlord | Discovered new exit (range 14) 2639 | -4/Warlord | Entered Proximity Caves 2642 | -3/Proximity Caves | Spotter reported a threat 2698 | -3/Proximity Caves | Lost 13 parts (3p6n3u1w) 2726 | -3/Proximity Caves | Destroyed by S-43 Plague with Heavy Machine Gun Last Messages --------------- 02643_ N-01 Spotter destroyed. 02649_ G-73 Enforcer destroyed. 02653_ Hvy. Laser fries itself beyond repair. 02654_ Lgt. Quantum Reactor destroyed. 02657_ Enh. Optical Array destroyed. 02659_ G-67 Veteran destroyed. 02659_ VTOL Module destroyed. 02667_ Entropic reaction triggered in Lgt. Antimatter Reactor. 02667_ G-67 Veteran destroyed. 02667_ Vortex Shotgun destroyed. 02667_ Destroyed Vortex Shotgun. 02670_ Acquired 10 matter. 02676_ Searching scrap... 02676_ Found Insulated Plating. 02676_ Found Transmission Jammer. 02676_ Found Adv. Component Analysis Suite. 02676_ Found 32 Matter. 02678_ Acquired Adv. Component Analysis Suite. 02680_ Acquired 10 matter. [Achievement: Just Browsing] Map ----- +----------------------------------------------------+ | ?????????????????????????????????????????????????? | | ?????????????????????????????????????????????????? | | ?????????????????????????????????????????????????? | | ?????????????????????????????????????????????????? | | ?????????????????????????????????????????????????? | | ?????????????????????????????????????????????????? | | ?????????????????????????????????????????????????? | | ?????????????????????????????????????????????????? | | ?????????????????????????????????????????????????? | | ?????????????????????????????????????????????????? | | ?????????????????????????????????????????????????? | | ?????????????????????????????????????????????????? | | ??????????????####?######????????????????????????? | | ??????????????#" ## #????????????????????????? | | ??????????????# "" #????????????????????????? | | ????###???????#""" #????????????????????????? | | ????# ####????#"" #????????????????????????? | | ????# #????# "## #####????????????????????? | | ##### #?????###### #????????????????????? | | ## #????## #????????????????????? | | % ##????# ##????????????????????? | | "#?????# ########?????????????????????? | | " "######### #????????????????????????????? | | " % "#?# g ##########???????????????????? | | " % "##?# g ###?????????????????? | | " "#?# ##### @ #?????????????????? | | ### #???## ###### #????????????????? | | #????### #?????# #??????????????? | | ######??????# ##?????# ss #???????????? | | ## #???????????# #??????# ????????? | | ?## #???????????# ##??????? s ????????? | | ??# #???????????## ######### ????????? | | ??# #????????????# ????????? | | ??# #????????????# ?????????? | | ??# #????????????############## ?????????? | | ??# #???????????????????????????? ??????????? | | ?? #????????????????????????????? ??????????? | | ?? #?????????????????????????????? ??????????? | | ??####?????????????????????????????? ???????????? | | ?????????????????????????????????????????????????? | | ?????????????????????????????????????????????????? | | ?????????????????????????????????????????????????? | | ?????????????????????????????????????????????????? | | ?????????????????????????????????????????????????? | | ?????????????????????????????????????????????????? | | ?????????????????????????????????????????????????? | | ?????????????????????????????????????????????????? | | ?????????????????????????????????????????????????? | | ?????????????????????????????????????????????????? | | ?????????????????????????????????????????????????? | +----------------------------------------------------+ Best States ------------- Heat Dissipation 62 Energy Generation 31 Energy Capacity 315 Matter Stores 300 Matter Capacity 300 Sight Range 22 Terrain Scan Density 10 Armor Coverage 600 Evasion (%) 66 Recoil Reduction 2 Offensive Hacking 10 Item Schematics ----------------- None Robot Schematics ------------------ None Fabricated ------------ Nothing Alien Tech Used ----------------- None Achievements -------------- A Powerful Ally? Charge!!! Just Browsing Challenges ------------ None Game ------ Seed FlyingShrapnelShotgun Manual? 0 Play Time 01:07:05 Cumulative 13.6 hours Start 2024.04.26 @ 20:57:52 End 2024.04.26 @ 22:13:53 Sessions 1 Manual Loads 0 Difficulty Rogue Special Mode None Game No. 17 Rogue 17 Adventurer 0 Explorer 0 Win Type - Total 0 Types 0/0/0/0/0/0/0/0/0 Lore% 18 Gallery% 25 Achievement% 23 Wizard Run 0 Options --------- Layout 0 ASCII 0 Keyboard 1 Movement Numpad Keybinds 0 Fullscreen 2 Font 18/SmallcapsGlow Map View 112x50 Zoom Use 0% Tactical HUD 1 Map Filters NONE Filters NONE Steam 1 RUN: d89f97be-2bb8-4682-829b-863c51e2e53e